bitfinex-derivatives/quotes_ETHF0:USTF0_20251210
["timestamp","ask_amount","ask_price","bid_price","bid_amount"]
[1765398656022,3.2078,3404.9,3404.3,0.24174709]
[1765398656214,3.21220749,3404.9,3404.8,3.17854087]
[1765398657319,0.00440749,3404.9,3404.8,3.32536087]
[1765398658320,0.00325094,3405.3,3405.2,0.1468]
[1765398658621,0.00325094,3405.3,3404.8,0.00254087]
[1765398658918,0.00325094,3405.3,3404.8,2.75964087]
[1765398659223,0.00325094,3405.3,3405.0,3.2078]
[1765398660120,3.2078,3406.4,3405.6,2.7571]
[1765398660318,2.75248026,3407.8,3405.6,2.7571]
[1765398660319,3.2078,3406.8,3406.4,2.7571]
[1765398660520,3.2078,3407.2,3406.5,0.14675]
[1765398660718,3.2078,3407.6,3406.4,5.9649]
[1765398660919,3.2078,3407.4,3407.2,2.90381]
[1765398661119,3.2078,3407.8,3407.3,0.14671]
[1765398661323,1.4372,3407.2,3407.0,3.08508154]
[1765398661620,4.068592,3407.1,3405.6,5.9649]
[1765398661815,4.068592,3407.1,3404.4,3.485]
[1765398661816,3.2078,3406.0,3405.2,3.2078]
[1765398662016,0.860792,3405.9,3405.2,3.2078]
[1765398662224,3.2078,3405.4,3405.1,0.1468]
[1765398662419,3.21038666,3405.4,3405.1,0.15060556]
[1765398662624,3.21038666,3405.4,3405.1,0.00380556]
[1765398662924,0.00258666,3405.4,3405.2,0.1468]
[1765398664122,0.00258666,3405.4,3405.1,0.00380556]
[1765398664327,3.2078,3405.2,3405.1,5.56e-06]
[1765398664626,4.06392314,3405.2,3405.1,5.56e-06]
[1765398665226,10.06392314,3405.2,3405.1,5.56e-06]
[1765398665521,1.75952575,3405.0,3403.7,0.14687]
[1765398665720,3.2078,3403.9,3403.1,3.2078]
[1765398665920,3.2078,3403.9,3403.4,0.14688]
[1765398666121,3.2078,3404.3,3403.4,0.14688]
[1765398666327,3.2078,3403.8,3403.4,0.1491129]
[1765398666528,3.2078,3403.8,3403.5,0.00440749]
[1765398667928,0.84963004,3403.7,3403.5,7.49e-06]
[1765398668119,0.84963004,3403.6,3403.5,7.49e-06]
[1765398668321,6.84963004,3403.6,3401.5,0.14696]
[1765398668525,6.84963004,3403.6,3401.8,0.14695]
[1765398668526,3.2078,3402.2,3401.8,0.14695]
[1765398668725,3.2078,3402.2,3402.0,2.90404]
[1765398668932,3.2078,3402.3,3401.4,3.2078]
[1765398669228,0.84962794,3402.2,3401.4,3.35477]
[1765398669426,0.00440749,3402.1,3401.5,0.00440749]
[1765398670226,3.2078,3401.8,3401.5,0.00440749]
[1765398670927,3.2078,3401.8,3401.6,0.14696]
[1765398671326,3.2078,3401.8,3401.7,0.14695]
[1765398672127,0.00440749,3402.1,3402.0,2.91644]
[1765398672531,0.00440749,3402.1,3402.0,6.12424]
[1765398672828,3.2078,3402.6,3402.5,0.14692]
[1765398673225,3.2078,3402.9,3402.6,0.14691]
[1765398673530,3.2078,3403.4,3402.9,2.7695]
[1765398673830,3.21101784,3403.4,3403.1,0.14689]
[1765398674428,3.21101784,3403.4,3402.9,2.7695]
[1765398674633,3.21101784,3403.4,3403.3,0.14688]
[1765398674934,0.00321784,3403.4,3402.9,2.7695]
[1765398675229,3.21101784,3403.4,3402.9,2.7695]
[1765398675430,3.2078,3403.0,3402.8,0.00440749]
[1765398675828,9.2078,3403.0,3402.8,0.00440749]
[1765398676030,9.2078,3403.0,3402.8,7.49e-06]
[1765398676330,3.2078,3403.0,3402.8,7.49e-06]
[1765398679623,3.2078,3403.0,3402.9,0.1469]
[1765398679930,3.2078,3403.0,3402.8,7.49e-06]
[1765398680236,4.96732575,3403.0,3402.8,7.49e-06]
[1765398681431,6.0,3402.9,3402.8,7.49e-06]
[1765398681639,6.0,3402.9,3401.7,10.936]
[1765398681931,3.2078,3401.9,3401.6,0.14696]
[1765398682137,3.2078,3401.9,3401.1,2.7571]
[1765398682337,3.2078,3401.5,3401.0,0.14698]
[1765398682532,3.2078,3401.5,3401.1,0.00440749]
[1765398682732,10.96732575,3401.5,3401.1,0.00440749]
[1765398682931,10.96732575,3401.5,3400.4,0.14701]
[1765398683138,3.2078,3400.5,3400.4,0.14701]
[1765398683734,3.2078,3400.5,3399.6,3.2078]
[1765398683735,9.20995304,3400.5,3399.6,3.35484]
[1765398683930,1.75952575,3400.2,3398.8,0.14708]
[1765398684238,1.75952575,3399.2,3398.7,3.2078]
[1765398684435,1.75952575,3399.2,3398.6,0.00440749]
[1765398684935,1.75952575,3398.7,3397.7,8.308]
[1765398685135,1.75952575,3398.2,3396.5,0.38562157]
[1765398685328,1.75952575,3397.6,3396.5,0.14717]
[1765398686033,0.00441409,3397.4,3396.5,0.00283492]
[1765398686440,3.2078,3396.6,3396.5,0.00283492]
[1765398686635,0.00441409,3397.4,3396.5,0.00283492]
[1765398686832,3.2078,3396.6,3396.5,0.00283492]
[1765398687638,9.2078,3396.6,3395.0,3.2078]
[1765398687832,3.2078,3395.8,3394.8,3.00868407]
[1765398688040,0.00441409,3395.6,3394.8,3.00868407]
[1765398688242,2.3320561,3397.4,3394.8,3.00868407]
[1765398688436,40.8,3397.3,3394.8,3.00868407]
[1765398688636,40.8,3397.3,3395.4,0.14722]
[1765398689132,40.8,3397.3,3394.8,3.0627502]
[1765398689332,0.00441409,3396.4,3396.1,0.14719]
[1765398689537,0.00280376,3397.6,3396.0,2.4462]
[1765398690435,0.00441409,3397.1,3396.0,2.4462]
[1765398690737,3.2078,3397.0,3396.2,3.2078]
[1765398690929,3.2078,3396.7,3396.0,2.4462]
[1765398691133,0.00441409,3397.1,3397.0,2.4462]
[1765398692241,3.21060376,3397.6,3397.2,0.14715]
[1765398692543,3.21060376,3397.6,3397.2,0.00215271]
[1765398692735,0.00280376,3397.6,3397.5,0.14714]
[1765398693442,3.21060376,3397.6,3397.2,0.00215271]
[1765398693644,0.00280376,3397.6,3397.2,0.14929271]
[1765398693844,0.00280376,3397.6,3397.2,0.00215271]
[1765398694137,0.00280376,3397.6,3397.3,3.2078]
[1765398694532,0.00280376,3397.6,3397.5,2.4462]
[1765398695038,0.00280376,3397.6,3397.4,0.14714]
[1765398695640,3.21060376,3397.6,3397.2,0.00215271]
[1765398695838,3.21060376,3397.6,3396.1,3.35499]
[1765398696045,3.2078,3396.9,3396.6,2.4462]
[1765398696838,3.2078,3396.9,3396.6,2.44940426]
[1765398697039,3.2078,3396.9,3396.7,0.14717]
[1765398697238,3.2078,3396.9,3396.8,0.14717]
[1765398697441,3.2078,3397.1,3396.8,0.14717]
[1765398698440,3.2078,3397.1,3396.6,2.44940426]
[1765398698748,3.2078,3397.1,3397.0,0.14716]
[1765398700647,3.2078,3397.1,3396.6,2.44940426]
[1765398700850,3.2078,3396.7,3396.6,2.44940426]
[1765398701450,3.2078,3396.7,3396.6,2.59657426]
[1765398701743,9.2078,3396.7,3396.1,3.2078]
[1765398701946,3.2078,3396.3,3395.5,3.35502]
[1765398702556,3.2078,3396.3,3395.1,3.2078]
[1765398702746,3.2078,3395.9,3395.7,0.00796458]
[1765398704343,3.2078,3395.9,3395.2,0.14723]
[1765398705348,3.2078,3395.9,3395.2,0.15541042]
[1765398705644,3.2078,3395.5,3395.2,0.15541042]
[1765398706348,0.83358542,3395.4,3395.2,0.15541042]
[1765398706847,3.2078,3395.5,3395.2,0.15541042]
[1765398707145,3.2078,3395.5,3395.2,0.00818042]
[1765398707453,3.2078,3395.5,3394.6,0.14726]
[1765398707454,0.82992849,3395.4,3394.6,0.14726]
[1765398707648,3.2078,3394.7,3394.6,0.14726]
[1765398708038,4.03844667,3394.7,3394.4,2.4462]
[1765398708351,6.83072689,3394.6,3393.1,0.14733]
[1765398708646,0.00441409,3394.2,3394.0,5.83e-06]
[1765398708841,4.03852689,3394.1,3394.0,5.83e-06]
[1765398709041,3.2078,3394.1,3394.0,0.14729583]
[1765398709241,4.03926644,3394.1,3394.0,5.83e-06]
[1765398709543,10.03926644,3394.1,3392.5,0.14735]
[1765398709848,3.2078,3393.3,3392.5,0.14735]
[1765398710042,1.76983409,3392.6,3391.5,3.2078]
[1765398710348,0.83146644,3392.5,3391.2,2.59361]
[1765398710548,3.21222074,3392.2,3392.1,2.4462]
[1765398710745,0.83958919,3392.2,3391.5,3.2078]
[1765398710946,0.00812275,3392.2,3391.5,3.2078]
[1765398711152,3.2078,3391.9,3391.3,0.1474]
[1765398711742,0.00812275,3392.2,3392.1,2.4462]
[1765398711949,0.00812275,3392.2,3391.7,3.2078]
[1765398712245,0.82921588,3392.1,3391.2,5.65610598]
[1765398712450,0.82921588,3392.0,3391.2,5.65610598]
[1765398712751,3.2078,3391.7,3391.2,0.00210598]
[1765398712957,3.2078,3391.3,3391.2,0.00210598]
[1765398713156,4.03701588,3391.3,3391.2,0.00210598]
[1765398713647,0.82921588,3391.3,3391.2,2.44830598]
[1765398713850,0.00812275,3392.2,3391.2,2.44830598]
[1765398714046,3.2078,3391.6,3391.2,2.44830598]
[1765398714246,3.2078,3391.6,3391.2,0.00210598]
[1765398714445,3.2078,3391.4,3391.2,0.00210598]
[1765398714851,0.82713297,3391.3,3391.2,0.00210598]
[1765398715055,0.82713297,3391.3,3389.9,3.2078]
[1765398715248,0.82713297,3391.2,3390.3,2.4462]
[1765398715455,0.82713297,3391.1,3390.3,2.4462]
[1765398715651,0.82713297,3391.0,3390.3,5.654]
[1765398715849,4.03375894,3390.9,3390.3,2.4462]
[1765398716055,3.2078,3390.9,3390.3,2.44842632]
[1765398717160,3.2078,3391.3,3390.7,0.14743]
[1765398717358,3.2078,3390.9,3390.7,0.14743]
[1765398717657,3.2078,3391.3,3390.7,0.14743]
[1765398718658,3.2078,3391.7,3391.2,2.249]
[1765398719361,3.2078,3391.3,3390.3,5.65622632]
[1765398719559,3.2078,3390.7,3390.3,0.00222632]
[1765398719960,3.2078,3390.7,3389.8,3.2078]
[1765398720166,3.2078,3389.9,3388.9,3.2078]
[1765398720457,0.00442074,3389.7,3388.9,3.2078]
[1765398720656,3.21222074,3389.7,3389.4,2.249]
[1765398720861,0.00442074,3389.7,3389.4,3.2078]
[1765398721058,0.00691084,3389.7,3389.4,0.00228964]
[1765398721255,6.00691084,3389.7,3388.5,2.69071449]
[1765398721451,0.14748,3389.5,3388.5,0.24451449]
[1765398721656,0.00691084,3389.7,3388.5,2.49351449]
[1765398721855,0.00691084,3389.7,3389.4,2.249]
[1765398722055,0.00691084,3389.7,3388.5,2.249]
[1765398722257,2.33849057,3389.2,3388.5,0.00355263]
[1765398722457,0.80685439,3389.1,3387.4,0.14757]
[1765398722665,2.33849057,3388.6,3387.4,0.14757]
[1765398722861,2.33849057,3388.6,3385.8,2.249]
[1765398723056,1.5712328,3389.4,3386.9,0.24568104]
[1765398723261,0.00691084,3389.7,3388.5,2.249]
[1765398723460,0.00691084,3389.7,3388.5,2.39652]
[1765398725067,0.00691084,3389.7,3388.5,2.249]
[1765398725272,2.83607743,3389.7,3388.5,2.249]
[1765398725473,0.97013395,3389.6,3387.6,2.39872469]
[1765398725773,0.97013395,3389.6,3387.6,2.25116469]
[1765398725774,2.82916659,3389.0,3387.6,2.25116469]
[1765398725970,41.62265395,3388.9,3387.6,2.25116469]
[1765398726169,1.5712328,3389.6,3387.6,2.25116469]
[1765398726373,2.3938653,3389.5,3387.6,2.25116469]
[1765398726566,0.14751,3388.9,3387.6,2.25116469]
[1765398726768,0.9701425,3388.9,3387.6,2.25116469]
[1765398727174,3.2078,3387.7,3387.6,2.25116469]
[1765398728166,0.00442784,3388.0,3387.6,2.25116469]
[1765398728369,3.2078,3388.1,3387.6,2.39872469]
[1765398728574,3.2078,3388.0,3387.6,0.00216469]
[1765398729971,3.2078,3388.0,3387.6,2.35216469]
[1765398730376,3.2078,3388.5,3387.7,0.14756]
[1765398730570,3.2078,3388.5,3387.8,0.14756]
[1765398731172,3.2078,3389.1,3388.5,2.35]
[1765398731371,3.21222784,3389.1,3388.5,2.35]
[1765398731571,0.00442784,3389.1,3388.5,8.35]
[1765398731774,0.00442784,3389.1,3388.5,2.49752]
[1765398731977,3.21222784,3389.1,3388.5,2.35]
[1765398732685,3.21222784,3389.1,3388.5,2.49752]
[1765398732892,3.2078,3390.0,3388.9,0.14751]
[1765398733183,3.2078,3391.5,3389.4,3.2078]
[1765398733382,4.7790328,3391.1,3389.4,3.2078]
[1765398733682,3.2078,3390.9,3389.4,3.2078]
[1765398733890,3.2078,3389.9,3389.8,0.00442784]
[1765398734179,0.82605566,3389.9,3388.5,2.35]
[1765398734384,0.82389849,3389.8,3388.5,2.35]
[1765398734584,0.82389849,3389.7,3388.5,2.35]
[1765398734784,3.2078,3389.4,3388.5,5.5578]
[1765398735177,3.2078,3389.4,3388.6,0.00442784]
[1765398735378,0.82629071,3389.3,3388.6,0.00442784]
[1765398735578,3.2078,3388.9,3387.7,3.2078]
[1765398735782,0.14748,3389.5,3387.7,3.2078]
[1765398735783,3.2078,3388.5,3387.7,3.2078]
[1765398735979,0.82629071,3388.4,3387.7,3.2078]
[1765398736179,1.5712328,3389.2,3388.1,3.2078]
[1765398736380,3.2078,3389.3,3388.1,3.2078]
[1765398736381,0.82724294,3389.1,3388.1,3.2078]
[1765398736583,3.2078,3388.8,3388.1,3.2078]
[1765398736778,0.82724294,3388.7,3388.3,0.00442784]
[1765398736986,0.82724294,3388.6,3388.3,0.00442784]
[1765398737286,0.83011477,3388.5,3388.3,0.00442784]
[1765398737485,0.83011477,3388.4,3388.3,0.00442784]
[1765398737684,0.00442784,3388.9,3388.3,0.15195784]
[1765398737982,0.00442784,3388.9,3388.3,0.00442784]
[1765398738289,1.5712328,3388.8,3388.3,0.00442784]
[1765398738489,3.2078,3388.5,3388.3,0.00442784]
[1765398738987,3.2078,3388.5,3387.6,2.35216469]
[1765398739180,1.57135664,3387.9,3387.6,2.35216469]
[1765398739581,1.57135664,3388.3,3387.7,3.2078]
[1765398739781,1.57135664,3388.5,3388.2,0.14754]
[1765398739977,1.57135664,3388.7,3388.3,0.14753]
[1765398740188,0.00442784,3388.9,3388.3,0.14753]
[1765398740381,3.2078,3388.4,3387.6,0.00216469]
[1765398740586,1.57135664,3388.1,3387.6,0.00216469]
[1765398740891,1.57135664,3387.8,3387.6,0.00216469]
[1765398741095,1.57135664,3387.9,3387.6,0.00216469]
[1765398741283,3.2078,3388.4,3387.6,0.00216469]
[1765398741284,1.57135664,3387.8,3387.6,0.00216469]
[1765398741785,1.57135664,3387.7,3387.6,0.00216469]
[1765398742384,3.2078,3387.9,3387.6,0.00216469]
[1765398742586,3.2078,3387.9,3386.6,3.2078]
[1765398742781,1.57596217,3387.1,3386.7,2.35]
[1765398742983,1.57596217,3387.3,3386.7,2.35]
[1765398743288,4.78376217,3387.4,3386.7,2.35]
[1765398743483,3.2078,3387.0,3386.7,2.3531537]
[1765398743690,0.00442784,3387.2,3386.8,3.2078]
[1765398743996,0.00442784,3387.2,3386.7,2.5007537]
[1765398744197,0.00442784,3387.2,3386.7,2.3531537]
[1765398744782,3.2078,3387.0,3386.7,0.0031537]
[1765398745080,3.2078,3387.0,3386.0,5.5578]
[1765398745285,1.57624665,3386.3,3386.1,0.14763]
[1765398745485,3.5966597,3387.2,3386.7,2.35]
[1765398745690,0.00442784,3387.2,3386.7,2.4976]
[1765398746188,0.00442784,3387.2,3386.7,2.352366]
[1765398746589,0.00442784,3387.2,3386.7,0.002366]
[1765398747391,3.2078,3386.8,3386.7,0.002366]
[1765398748291,5.81359026,3386.8,3385.3,0.24794753]
[1765398748500,3.2078,3386.5,3385.8,2.3462]
[1765398748989,0.00442784,3387.2,3386.2,3.2078]
[1765398749196,0.00442784,3387.2,3386.7,2.3462]
[1765398749382,0.00442784,3387.2,3386.7,2.4938]
[1765398749588,0.82382575,3387.1,3386.7,2.4938]
[1765398749789,0.82382575,3387.0,3386.7,2.3462]
[1765398749989,0.82382575,3386.9,3386.7,2.3462]
[1765398750189,0.82382575,3386.8,3386.7,2.3462]
[1765398750486,0.82382575,3386.8,3386.7,8.4938]
[1765398750796,0.82382575,3386.8,3386.7,2.4938]
[1765398751394,0.82382575,3386.8,3386.5,3.2078]
[1765398751590,0.82382575,3386.7,3386.5,3.35541]
[1765398751792,0.00442784,3387.2,3386.7,2.4938]
[1765398752093,0.80252327,3387.1,3387.0,3.2078]
[1765398753999,3.2078,3388.1,3387.2,0.14758]
[1765398754295,3.2078,3388.1,3387.6,2.3462]
[1765398754693,3.2078,3388.5,3387.6,2.3462]
[1765398754890,5.31203245,3389.0,3387.9,3.2078]
[1765398755095,0.00442784,3388.8,3388.3,3.2078]
[1765398755294,0.00442784,3388.8,3388.5,2.3462]
[1765398755598,0.00442784,3388.8,3388.7,3.2078]
[1765398755789,0.00442784,3388.8,3388.7,3.21097984]
[1765398755994,0.00442784,3388.8,3388.7,0.00317984]
[1765398756191,0.00442784,3388.8,3388.3,3.2078]
[1765398756592,3.2078,3388.4,3388.1,0.00442784]
[1765398756798,2.10689751,3389.0,3388.1,0.00442784]
[1765398756799,3.2078,3388.8,3388.1,0.00442784]
[1765398757002,0.00266506,3389.0,3388.1,3.21222784]
[1765398757190,0.00266506,3389.0,3388.6,0.14752]
[1765398757498,0.00266506,3389.0,3388.9,0.14751]
[1765398757700,0.00266506,3389.0,3388.9,3.35531]
[1765398758596,0.00442784,3389.1,3389.0,0.1475]
[1765398758792,0.00442784,3389.1,3388.9,9.2078]
[1765398758793,3.2078,3390.8,3389.4,2.3462]
[1765398759102,3.2078,3390.8,3390.0,3.2078]
[1765398759303,3.2078,3390.8,3389.8,0.14747]
[1765398759503,3.2078,3390.8,3390.0,3.2078]
[1765398759698,0.00442784,3390.7,3390.1,0.00442784]
[1765398760900,0.00442784,3390.7,3390.1,0.15188784]
[1765398761095,0.00442784,3390.7,3390.3,2.3462]
[1765398761496,0.00442784,3390.7,3390.4,0.14744]
[1765398761994,3.2078,3391.6,3390.4,9.2078]
[1765398762195,3.2078,3391.6,3391.0,0.14741]
[1765398762589,3.2078,3392.3,3391.2,2.3462]
[1765398762797,3.2078,3392.3,3391.4,3.2078]
[1765398762994,0.00442784,3392.2,3391.4,3.35857936]
[1765398763196,0.00442784,3392.2,3392.1,2.3462]
[1765398763594,0.00442784,3392.2,3392.1,2.49357]
[1765398763796,3.2078,3393.8,3392.2,0.14737]
[1765398763995,3.2078,3393.4,3392.2,0.14737]
[1765398764598,3.2078,3393.6,3392.6,3.2078]
[1765398764797,0.00442087,3393.4,3392.7,0.14734]
[1765398764993,0.00442087,3393.4,3393.1,3.2078]
[1765398765393,0.00442087,3393.4,3393.3,3.2078]
[1765398765596,0.00442087,3393.4,3393.0,2.3462]
[1765398765998,0.00442087,3393.4,3393.1,3.2078]
[1765398766498,3.2078,3394.6,3393.1,9.2078]
[1765398766694,3.2078,3394.6,3393.5,3.2078]
[1765398767099,3.2078,3395.0,3394.1,3.2078]
[1765398767603,0.00286777,3394.9,3394.2,0.00442087]
[1765398768799,0.00286777,3394.9,3394.5,3.2078]
[1765398768997,0.00286777,3394.9,3394.8,2.3462]
[1765398769703,3.2078,3396.1,3395.2,0.14723]
[1765398770003,3.2078,3396.1,3395.3,3.2078]
[1765398770199,3.2078,3396.5,3395.7,5.554]
[1765398770501,3.2078,3396.9,3396.1,3.2078]
[1765398770709,3.2103475,3396.9,3396.2,0.00442087]
[1765398771209,1.9128,3399.3,3396.2,0.00442087]
[1765398771210,1.56479485,3399.8,3398.4,1.6283]
[1765398771500,2.17893823,3401.2,3398.4,1.77539]
[1765398771705,0.24846171,3401.6,3398.8,0.0044143]
[1765398771706,0.14701,3400.5,3398.8,0.0044143]
[1765398771910,2.17898823,3400.0,3396.9,0.381]
[1765398772102,2.03195823,3399.4,3397.1,0.14715]
[1765398772300,2.03195823,3398.8,3397.1,0.14715]
[1765398772702,2.3199,3399.0,3397.1,0.14715]
[1765398772905,0.0043924,3398.4,3397.7,0.0044143]
[1765398773607,3.2078,3398.2,3397.7,0.0044143]
[1765398774005,0.0043924,3398.4,3397.8,3.2078]
[1765398778209,3.21044432,3400.0,3398.3,3.2078]
[1765398778405,3.21044432,3400.0,3397.9,2.34]
[1765398778406,3.21044432,3400.0,3398.9,3.2078]
[1765398779310,3.2078,3399.5,3398.9,3.2078]
[1765398779510,3.21044432,3400.0,3398.9,3.35487]
[1765398780206,3.21044432,3400.0,3399.3,3.2078]
[1765398780504,3.21044432,3400.0,3399.3,3.21158657]
[1765398780705,0.00264432,3400.0,3399.5,0.14705]
[1765398781107,0.00264432,3400.0,3399.4,0.0044143]
[1765398781609,3.2078,3399.5,3398.3,3.2078]
[1765398782003,2.81408152,3399.9,3398.3,3.2078]
[1765398782004,2.3861,3399.0,3398.3,3.2078]
[1765398782203,2.3861,3399.0,3398.0,3.2078]
[1765398782402,3.2078,3398.3,3397.2,3.2078]
[1765398782611,0.0044143,3398.1,3397.4,0.0044143]
[1765398783007,3.2078,3397.8,3397.4,0.0044143]
[1765398783603,9.2078,3397.8,3397.4,0.0044143]
[1765398784401,3.2078,3397.8,3397.4,3.2122143]
[1765398785703,3.2078,3397.8,3397.4,0.0044143]
[1765398786212,3.2078,3397.8,3397.6,3.2078]
[1765398786410,0.0044143,3398.1,3397.8,0.14712]
[1765398786611,0.0044143,3398.1,3397.9,3.2078]
[1765398786917,0.0044143,3398.1,3397.8,0.14712]
[1765398787110,3.2078,3398.7,3398.0,2.03241]
[1765398787610,3.2078,3398.2,3398.1,3.2078]
[1765398787811,3.2078,3398.2,3397.5,3.2078]
[1765398788010,3.2078,3398.2,3398.1,3.2078]
[1765398788817,3.2078,3398.2,3397.5,3.2078]
[1765398789111,3.2078,3398.2,3397.9,3.2078]
[1765398789311,3.2078,3398.8,3397.9,3.2078]
[1765398789517,3.2078,3398.8,3397.5,3.35493]
[1765398789711,3.77422931,3399.0,3397.5,3.35493]
[1765398789712,3.2078,3398.3,3397.6,3.2078]
[1765398790016,3.2078,3398.3,3397.5,6.56273]
[1765398790215,3.2078,3398.8,3397.5,6.56273]
[1765398790418,3.2078,3398.3,3397.6,0.14713]
[1765398790607,3.2078,3398.4,3397.6,0.14713]
[1765398791114,3.2078,3398.5,3397.6,0.14713]
[1765398791311,4.6518,3399.0,3397.6,0.14713]
[1765398791516,3.2078,3398.4,3397.5,3.2078]
[1765398791717,2.2998,3398.0,3397.5,3.2078]
[1765398792118,3.2078,3397.6,3397.4,0.0044143]
[1765398792319,3.21129519,3397.6,3397.4,0.0044143]
[1765398792516,6.0,3397.5,3396.5,3.2078]
[1765398792813,3.2078,3396.6,3396.0,3.2078]
[1765398793516,3.2122143,3396.6,3396.0,3.21548917]
[1765398794710,3.2122143,3396.6,3396.3,0.14718]
[1765398794915,0.0044143,3396.6,3396.4,3.2078]
[1765398795414,3.2078,3397.2,3396.4,3.2078]
[1765398795617,3.2078,3398.0,3397.0,2.2193]
[1765398795822,3.2078,3398.0,3397.2,3.2078]
[1765398796324,1.76826203,3399.1,3397.5,0.14714]
[1765398796325,3.2078,3398.3,3397.5,0.14714]
[1765398798218,0.71695105,3398.2,3397.2,3.2078]
[1765398798418,0.71695105,3397.5,3396.8,3.2078]
[1765398798716,0.71695105,3397.5,3397.3,3.2078]
[1765398799122,3.2078,3397.9,3397.3,3.2078]
[1765398799422,3.2078,3398.0,3397.3,3.2078]
[1765398799620,0.71584891,3397.9,3397.3,3.2078]
[1765398800317,0.71584891,3397.8,3397.5,0.14714]
[1765398800519,0.71584891,3397.7,3397.3,3.2078]
[1765398800721,0.71630805,3397.5,3396.8,3.2078]
[1765398800924,0.71630805,3397.5,3396.2,0.14719]
[1765398800925,3.2078,3397.2,3396.4,3.2078]
[1765398801120,0.71630805,3397.1,3396.4,6.4156]
[1765398801423,0.71630805,3397.0,3396.4,6.56278]
[1765398801626,0.71630805,3396.9,3396.4,6.4156]
[1765398801920,3.2078,3397.2,3397.0,0.14716]
[1765398802122,0.71646795,3397.1,3396.4,3.2078]
[1765398802316,0.71646795,3397.0,3396.5,3.2078]
[1765398802517,0.71646795,3396.9,3396.5,3.2078]
[1765398802713,0.71646795,3396.9,3396.0,2.22698917]
[1765398802714,3.92426795,3396.8,3396.0,3.36268917]
[1765398802918,2.4284328,3396.7,3396.0,3.21548917]
[1765398803120,3.2078,3396.4,3396.0,0.00768917]
[1765398803328,0.71646795,3396.3,3396.0,3.21548917]
[1765398803516,0.71646795,3396.2,3396.0,3.21548917]
[1765398803714,0.71646795,3396.1,3396.0,3.21548917]
[1765398804124,2.2998,3396.0,3395.1,3.35504]
[1765398804321,3.2078,3395.4,3394.3,3.35507]
[1765398804520,3.2078,3394.9,3394.3,6.56287]
[1765398804723,3.2078,3395.3,3394.3,6.56287]
[1765398804920,3.2078,3394.9,3394.3,6.56287]
[1765398805222,3.21121247,3394.9,3394.6,0.14726]
[1765398805421,3.21562677,3394.9,3394.6,0.14726]
[1765398805722,0.7149841,3394.8,3394.3,0.00769121]
[1765398806026,0.7149841,3394.8,3394.4,3.2078]
[1765398806919,3.21562677,3394.9,3394.4,3.2078]
[1765398807421,3.21562677,3394.9,3394.7,0.14725]
[1765398807615,3.21562677,3394.9,3394.7,3.2078]
[1765398808323,3.21562677,3394.9,3394.8,3.2078]
[1765398808526,3.92910398,3394.9,3394.8,3.2078]
[1765398808726,3.92910398,3394.9,3394.8,3.35505]
[1765398808727,3.21562677,3394.9,3394.8,3.35505]
[1765398809817,3.2078,3395.3,3394.9,0.14725]
[1765398810129,3.2078,3395.7,3395.1,3.2078]
[1765398810325,3.2078,3396.1,3395.1,3.2078]
[1765398810821,3.21136249,3396.1,3395.1,3.2078]
[1765398811618,3.21136249,3396.1,3395.1,3.35504]
[1765398811825,3.21136249,3396.1,3394.8,3.2078]
[1765398812126,3.2078,3395.6,3394.8,3.2078]
[1765398813124,3.2078,3395.6,3395.0,2.1547]
[1765398813324,3.21136249,3396.1,3395.4,0.14723]
[1765398814719,3.21136249,3396.1,3395.0,2.1547]
[1765398814921,0.71362971,3396.0,3394.7,3.35506]
[1765398815126,3.2078,3395.4,3394.9,3.2078]
[1765398815827,3.2078,3395.2,3394.9,3.2078]
[1765398816434,3.2078,3395.5,3394.9,3.35505]
[1765398816728,3.2078,3395.9,3394.9,3.35505]
[1765398817028,3.2078,3395.5,3394.9,3.35505]
[1765398817233,1.77333454,3396.1,3394.9,3.35505]
[1765398817234,3.2078,3395.4,3395.0,0.14724]
[1765398817927,3.2078,3395.9,3395.8,0.14721]
[1765398818130,0.00356249,3396.1,3395.2,3.2078]
[1765398818835,0.00356249,3396.1,3396.0,0.1472]
[1765398819724,3.2078,3397.2,3396.4,0.14718]
[1765398819925,3.2078,3397.2,3396.5,0.0044143]
[1765398820122,3.2078,3397.2,3396.5,3.2122143]
[1765398820525,3.2078,3396.8,3396.5,3.2122143]
[1765398820726,3.21119617,3396.8,3396.5,0.0044143]
[1765398821235,2.2986,3396.6,3395.1,3.2078]
[1765398821530,5.5064,3396.6,3395.6,3.2078]
[1765398821827,3.2078,3396.6,3395.7,3.2078]
[1765398822227,0.0044143,3396.5,3395.8,0.0044143]
[1765398822630,0.0044143,3396.5,3396.2,0.14719]
[1765398822833,0.0044143,3396.5,3395.8,0.0044143]
[1765398823033,0.0044143,3396.5,3396.1,3.2078]
[1765398824039,0.0044143,3396.5,3396.2,0.14719]
[1765398824535,0.00339617,3396.8,3396.2,0.14719]
[1765398824536,0.00339617,3396.8,3396.4,0.14718]
[1765398824736,0.00339617,3396.8,3396.6,3.2078]
[1765398825129,0.00339617,3396.8,3396.7,0.14717]
[1765398825328,0.00339617,3396.8,3396.7,0.15040645]
[1765398826330,2.2998,3399.0,3397.6,0.14713]
[1765398826532,3.2078,3398.9,3398.0,0.0044143]
[1765398827436,3.21070616,3398.9,3398.1,0.14711]
[1765398827939,3.21070616,3398.9,3398.2,0.1471]
[1765398828242,3.21070616,3398.9,3398.3,0.1471]
[1765398828535,3.21070616,3398.9,3398.0,0.0044143]
[1765398828536,3.21070616,3398.9,3398.5,0.14709]
[1765398828937,0.00290616,3398.9,3398.5,0.14709]
[1765398830338,0.00290616,3398.9,3398.7,3.2078]
[1765398830537,0.00290616,3398.9,3398.5,0.14709]
[1765398830727,0.00290616,3398.9,3398.3,3.2078]
[1765398830933,2.2986,3398.4,3398.3,3.2078]
[1765398831333,3.21070616,3398.9,3398.3,3.2078]
[1765398831940,0.00290616,3398.9,3398.6,0.14709]
[1765398833441,0.00290616,3398.9,3398.8,0.14708]
[1765398834435,0.00290616,3398.9,3398.3,3.2078]
[1765398835842,0.00290616,3398.9,3398.7,0.14708]
[1765398836333,3.2078,3399.8,3398.7,9.2078]
[1765398836537,3.2078,3399.8,3398.7,3.44593336]
[1765398836735,3.2078,3399.8,3399.4,0.14705]